[Event "Titled Tuesday Blitz August 09 Early 2022"]
[White "Shpanko, Nadiia"]
[Black "Pourkashiyan, Atousa"]
[WhiteFideId "14132400"]
[BlackFideId "12502014"]
[WhiteElo "2139"]
[BlackElo "2247"]
[Result "1-0"]
[Round "07"]
[TimeControl "180+1"]
[Date "2022.08.09"]
[WhiteClock "0:00:47"]
[BlackClock "0:01:17"]

1. c4 {[%clk 0:03:00]}  e5 {[%clk 0:02:57]} 2. Nc3 {[%clk 0:03:00]}  Nf6 {[%clk 0:02:57]} 3. g3 {[%clk 0:03:01]}  d5 {[%clk 0:02:57]} 4. cxd5 {[%clk 0:03:00]}  Nxd5 {[%clk 0:02:58]} 5. Bg2 {[%clk 0:03:00]}  Nb6 {[%clk 0:02:58]} 6. Nf3 {[%clk 0:03:00]}  Nc6 {[%clk 0:02:58]} 7. O-O {[%clk 0:02:58]}  Be7 {[%clk 0:02:58]} 8. d3 {[%clk 0:02:59]}  O-O {[%clk 0:02:59]} 9. a3 {[%clk 0:02:59]}  Re8 {[%clk 0:02:55]} 10. b4 {[%clk 0:02:58]}  Bf8 {[%clk 0:02:54]} 11. Bb2 {[%clk 0:02:58]}  Bg4 {[%clk 0:02:49]} 12. h3 {[%clk 0:02:56]}  Bh5 {[%clk 0:02:49]} 13. g4 {[%clk 0:02:43]}  Bg6 {[%clk 0:02:49]} 14. Qb3 {[%clk 0:02:40]}  a5 {[%clk 0:02:47]} 15. b5 {[%clk 0:02:30]}  a4 {[%clk 0:02:47]} 16. Qc2 {[%clk 0:02:23]}  Nd4 {[%clk 0:02:47]} 17. Nxd4 {[%clk 0:02:23]}  exd4 {[%clk 0:02:48]} 18. Ne4 {[%clk 0:02:23]}  Nd5 {[%clk 0:02:33]} 19. Bxd4 {[%clk 0:02:08]}  Nf4 {[%clk 0:02:33]} 20. Bb2 {[%clk 0:01:52]}  Qh4 {[%clk 0:02:32]} 21. Qxc7 {[%clk 0:01:45]}  Nxh3+ {[%clk 0:02:30]} 22. Bxh3 {[%clk 0:01:42]}  Qxh3 {[%clk 0:02:31]} 23. Qg3 {[%clk 0:01:42]}  Qh6 {[%clk 0:02:22]} 24. Bc1 {[%clk 0:01:33]}  Bxe4 {[%clk 0:01:34]} 25. Bxh6 {[%clk 0:01:32]}  Bg6 {[%clk 0:01:35]} 26. Be3 {[%clk 0:01:31]}  Rad8 {[%clk 0:01:35]} 27. Rfc1 {[%clk 0:01:24]}  Bd6 {[%clk 0:01:36]} 28. f4 {[%clk 0:01:24]}  f5 {[%clk 0:01:35]} 29. gxf5 {[%clk 0:01:23]}  Bxf5 {[%clk 0:01:36]} 30. Kf2 {[%clk 0:01:19]}  Re6 {[%clk 0:01:36]} 31. Bc5 {[%clk 0:01:15]}  Bb8 {[%clk 0:01:27]} 32. Rg1 {[%clk 0:01:07]}  Rg6 {[%clk 0:01:23]} 33. Qh4 {[%clk 0:01:07]}  Rd5 {[%clk 0:01:15]} 34. Rxg6 {[%clk 0:00:59]}  Bxg6 {[%clk 0:01:16]} 35. Rc1 {[%clk 0:00:53]}  Bxf4 {[%clk 0:01:16]} 36. Qxf4 {[%clk 0:00:49]}  Rf5 {[%clk 0:01:16]} 37. Qxf5 {[%clk 0:00:49]}  Bxf5 {[%clk 0:01:17]} 38. Bd6 {[%clk 0:00:48]}  h5 {[%clk 0:01:17]} 39. Rc7 {[%clk 0:00:47]} 1-0


[Site "https://www.chess.com"]

[Event "Titled Tuesday Blitz August 09 Early 2022"]
[White "Shuvalov, Evgenij"]
[Black "Bristy, Mukherjee"]
[WhiteFideId "4187237"]
[BlackFideId "25077325"]
[WhiteElo "2058"]
[BlackElo "1661"]
[Result "1-0"]
[Round "07"]
[TimeControl "180+1"]
[Date "2022.08.09"]
[WhiteClock "0:00:11"]
[BlackClock "0:00:02"]

1. Nf3 {[%clk 0:02:55]}  f5 {[%clk 0:02:59]} 2. e4 {[%clk 0:02:54]}  d5 {[%clk 0:02:48]} 3. e5 {[%clk 0:02:46]}  e6 {[%clk 0:02:44]} 4. d4 {[%clk 0:02:45]}  Be7 {[%clk 0:02:41]} 5. Nc3 {[%clk 0:02:33]}  c5 {[%clk 0:02:36]} 6. dxc5 {[%clk 0:02:28]}  Bxc5 {[%clk 0:02:36]} 7. Ne2 {[%clk 0:02:22]}  Nc6 {[%clk 0:02:31]} 8. c3 {[%clk 0:02:15]}  Qc7 {[%clk 0:02:16]} 9. Bf4 {[%clk 0:02:12]}  Qb6 {[%clk 0:02:16]} 10. Ned4 {[%clk 0:02:02]}  Qxb2 {[%clk 0:02:12]} 11. Rb1 {[%clk 0:01:46]}  Qxc3+ {[%clk 0:02:00]} 12. Bd2 {[%clk 0:01:46]}  Bxd4 {[%clk 0:01:31]} 13. Bxc3 {[%clk 0:01:45]}  Bxc3+ {[%clk 0:01:32]} 14. Ke2 {[%clk 0:01:39]}  b6 {[%clk 0:01:25]} 15. Qa4 {[%clk 0:01:37]}  Ne7 {[%clk 0:01:18]} 16. Rc1 {[%clk 0:01:32]}  b5 {[%clk 0:00:41]} 17. Qxb5 {[%clk 0:01:23]}  Rb8 {[%clk 0:00:40]} 18. Qa4 {[%clk 0:01:16]}  Rb4 {[%clk 0:00:32]} 19. Qa3 {[%clk 0:00:52]}  Bb2 {[%clk 0:00:30]} 20. Qe3 {[%clk 0:00:43]}  Re4 {[%clk 0:00:25]} 21. Rc2 {[%clk 0:00:37]}  Rxe3+ {[%clk 0:00:14]} 22. fxe3 {[%clk 0:00:38]}  Bxe5 {[%clk 0:00:10]} 23. Nxe5 {[%clk 0:00:37]}  Nxe5 {[%clk 0:00:11]} 24. Kd2 {[%clk 0:00:34]}  Kd7 {[%clk 0:00:11]} 25. Bb5+ {[%clk 0:00:33]}  N7c6 {[%clk 0:00:09]} 26. Rhc1 {[%clk 0:00:32]}  Bb7 {[%clk 0:00:09]} 27. Rc5 {[%clk 0:00:28]}  Kd6 {[%clk 0:00:09]} 28. Ba4 {[%clk 0:00:27]}  Rb8 {[%clk 0:00:07]} 29. Rb5 {[%clk 0:00:26]}  Ba6 {[%clk 0:00:05]} 30. Rxb8 {[%clk 0:00:24]}  Nxb8 {[%clk 0:00:06]} 31. Bb3 {[%clk 0:00:20]}  Nc4+ {[%clk 0:00:06]} 32. Bxc4 {[%clk 0:00:21]}  Bxc4 {[%clk 0:00:07]} 33. Rb1 {[%clk 0:00:21]}  Nc6 {[%clk 0:00:07]} 34. a3 {[%clk 0:00:20]}  Ba6 {[%clk 0:00:06]} 35. g3 {[%clk 0:00:19]}  e5 {[%clk 0:00:06]} 36. h4 {[%clk 0:00:19]}  d4 {[%clk 0:00:06]} 37. exd4 {[%clk 0:00:19]}  exd4 {[%clk 0:00:07]} 38. Re1 {[%clk 0:00:18]}  Ne5 {[%clk 0:00:06]} 39. Rb1 {[%clk 0:00:16]}  Nc4+ {[%clk 0:00:05]} 40. Ke1 {[%clk 0:00:13]}  Nxa3 {[%clk 0:00:05]} 41. Rb8 {[%clk 0:00:12]}  d3 {[%clk 0:00:02]} 42. Kd2 {[%clk 0:00:11]} 1-0


[Site "https://www.chess.com"]

[Event "Titled Tuesday Blitz August 09 Early 2022"]
[White "Silvestre, Christian"]
[Black "Ponce Cano, Adrian"]
[WhiteFideId "30956269"]
[BlackFideId "22296913"]
[WhiteElo "2308"]
[BlackElo "2261"]
[Result "0-1"]
[Round "07"]
[TimeControl "180+1"]
[Date "2022.08.09"]
[WhiteClock "0:00:05"]
[BlackClock "0:00:11"]

1. Nf3 {[%clk 0:03:00]}  d5 {[%clk 0:02:59]} 2. d4 {[%clk 0:02:59]}  Nf6 {[%clk 0:02:59]} 3. Bf4 {[%clk 0:02:59]}  e6 {[%clk 0:02:59]} 4. e3 {[%clk 0:03:00]}  Bd6 {[%clk 0:02:59]} 5. Bg3 {[%clk 0:02:55]}  O-O {[%clk 0:02:59]} 6. Bd3 {[%clk 0:02:55]}  c5 {[%clk 0:02:58]} 7. c3 {[%clk 0:02:54]}  Nc6 {[%clk 0:02:57]} 8. Nbd2 {[%clk 0:02:52]}  Rb8 {[%clk 0:02:54]} 9. a4 {[%clk 0:02:51]}  a6 {[%clk 0:02:52]} 10. Qe2 {[%clk 0:02:50]}  c4 {[%clk 0:02:52]} 11. Bc2 {[%clk 0:02:50]}  Re8 {[%clk 0:02:51]} 12. Bxd6 {[%clk 0:02:24]}  Qxd6 {[%clk 0:02:49]} 13. O-O {[%clk 0:02:20]}  b5 {[%clk 0:02:40]} 14. axb5 {[%clk 0:02:18]}  axb5 {[%clk 0:02:41]} 15. e4 {[%clk 0:02:05]}  e5 {[%clk 0:02:34]} 16. Nxe5 {[%clk 0:01:45]}  Nxe5 {[%clk 0:02:26]} 17. dxe5 {[%clk 0:01:46]}  Rxe5 {[%clk 0:02:21]} 18. Nf3 {[%clk 0:01:37]}  Bg4 {[%clk 0:02:14]} 19. Qe3 {[%clk 0:01:24]}  Bxf3 {[%clk 0:02:11]} 20. gxf3 {[%clk 0:01:18]}  dxe4 {[%clk 0:02:10]} 21. fxe4 {[%clk 0:01:16]}  Rbe8 {[%clk 0:01:13]} 22. f4 {[%clk 0:01:10]}  Rh5 {[%clk 0:01:13]} 23. e5 {[%clk 0:01:08]}  Qd7 {[%clk 0:01:13]} 24. Qf3 {[%clk 0:00:45]}  Ng4 {[%clk 0:01:03]} 25. h3 {[%clk 0:00:37]}  Rh4 {[%clk 0:00:58]} 26. Qg3 {[%clk 0:00:11]}  g5 {[%clk 0:00:58]} 27. fxg5 {[%clk 0:00:10]}  Qd2 {[%clk 0:00:38]} 28. hxg4 {[%clk 0:00:06]}  Qxc2 {[%clk 0:00:28]} 29. Qxh4 {[%clk 0:00:05]}  Qd2 {[%clk 0:00:28]} 30. Qf2 {[%clk 0:00:06]}  Qd5 {[%clk 0:00:26]} 31. Qf3 {[%clk 0:00:05]}  Qc5+ {[%clk 0:00:26]} 32. Qf2 {[%clk 0:00:04]}  Qd5 {[%clk 0:00:26]} 33. Rae1 {[%clk 0:00:05]}  Re7 {[%clk 0:00:21]} 34. Qe3 {[%clk 0:00:04]}  Qe6 {[%clk 0:00:21]} 35. Qf4 {[%clk 0:00:05]}  Qb6+ {[%clk 0:00:21]} 36. Kg2 {[%clk 0:00:04]}  Qc6+ {[%clk 0:00:21]} 37. Kg3 {[%clk 0:00:04]}  Rd7 {[%clk 0:00:20]} 38. Qf3 {[%clk 0:00:05]}  Rd3 {[%clk 0:00:19]} 39. Rf2 {[%clk 0:00:05]}  Rxf3+ {[%clk 0:00:19]} 40. Rxf3 {[%clk 0:00:06]}  Qe6 {[%clk 0:00:19]} 41. Ref1 {[%clk 0:00:06]}  Qxe5+ {[%clk 0:00:20]} 42. Rf4 {[%clk 0:00:06]}  Qe3+ {[%clk 0:00:20]} 43. R1f3 {[%clk 0:00:07]}  Qg1+ {[%clk 0:00:20]} 44. Kh3 {[%clk 0:00:07]}  Qh1+ {[%clk 0:00:21]} 45. Kg3 {[%clk 0:00:07]}  Qg1+ {[%clk 0:00:21]} 46. Kh3 {[%clk 0:00:08]}  Qh1+ {[%clk 0:00:16]} 47. Kg3 {[%clk 0:00:09]}  h5 {[%clk 0:00:13]} 48. gxh5 {[%clk 0:00:08]}  Qg1+ {[%clk 0:00:13]} 49. Kh4 {[%clk 0:00:07]}  Qh1+ {[%clk 0:00:13]} 50. Kg4 {[%clk 0:00:08]}  Qg2+ {[%clk 0:00:12]} 51. Rg3 {[%clk 0:00:07]}  Qxb2 {[%clk 0:00:13]} 52. g6 {[%clk 0:00:07]}  fxg6 {[%clk 0:00:12]} 53. hxg6 {[%clk 0:00:08]}  Qe2+ {[%clk 0:00:12]} 54. Rgf3 {[%clk 0:00:08]}  b4 {[%clk 0:00:12]} 55. Kg5 {[%clk 0:00:08]}  Qe5+ {[%clk 0:00:12]} 56. Rf5 {[%clk 0:00:08]}  Qe7+ {[%clk 0:00:12]} 57. Kh6 {[%clk 0:00:07]}  b3 {[%clk 0:00:12]} 58. Rf7 {[%clk 0:00:05]}  Qh4# {[%clk 0:00:11]} 0-1


[Site "https://www.chess.com"]

[Event "Titled Tuesday Blitz August 09 Early 2022"]
[White "Skliarov, Viktor"]
[Black "Nasir, Zehn"]
[WhiteFideId "14106736"]
[BlackFideId "2613239"]
[WhiteElo "2257"]
[BlackElo "1993"]
[Result "1/2-1/2"]
[Round "07"]
[TimeControl "180+1"]
[Date "2022.08.09"]
[WhiteClock "0:00:07"]
[BlackClock "0:00:10"]

1. e4 {[%clk 0:02:50]}  c6 {[%clk 0:03:00]} 2. d4 {[%clk 0:02:50]}  d5 {[%clk 0:03:01]} 3. e5 {[%clk 0:02:50]}  Bf5 {[%clk 0:03:01]} 4. Nf3 {[%clk 0:02:51]}  e6 {[%clk 0:03:01]} 5. Be2 {[%clk 0:02:51]}  Nd7 {[%clk 0:03:01]} 6. O-O {[%clk 0:02:51]}  Ne7 {[%clk 0:03:01]} 7. a4 {[%clk 0:02:51]}  h6 {[%clk 0:03:01]} 8. a5 {[%clk 0:02:52]}  a6 {[%clk 0:03:01]} 9. b4 {[%clk 0:02:52]}  g5 {[%clk 0:02:55]} 10. Ne1 {[%clk 0:02:51]}  Ng6 {[%clk 0:02:46]} 11. g4 {[%clk 0:02:45]}  Bxg4 {[%clk 0:02:17]} 12. Bxg4 {[%clk 0:02:41]}  Bxb4 {[%clk 0:02:18]} 13. Bd2 {[%clk 0:02:29]}  Be7 {[%clk 0:02:14]} 14. Bh5 {[%clk 0:02:25]}  O-O {[%clk 0:02:05]} 15. Ng2 {[%clk 0:02:20]}  c5 {[%clk 0:01:59]} 16. c3 {[%clk 0:02:17]}  Kg7 {[%clk 0:01:47]} 17. f4 {[%clk 0:02:11]}  f5 {[%clk 0:01:34]} 18. exf6+ {[%clk 0:02:03]}  Bxf6 {[%clk 0:01:32]} 19. fxg5 {[%clk 0:01:35]}  Bxg5 {[%clk 0:01:21]} 20. Bxg6 {[%clk 0:01:31]}  Kxg6 {[%clk 0:01:21]} 21. Rxf8 {[%clk 0:01:18]}  Nxf8 {[%clk 0:01:11]} 22. Qg4 {[%clk 0:01:17]}  cxd4 {[%clk 0:00:59]} 23. h4 {[%clk 0:01:06]}  dxc3 {[%clk 0:00:53]} 24. Nxc3 {[%clk 0:01:03]}  Nh7 {[%clk 0:00:39]} 25. hxg5 {[%clk 0:00:56]}  Nxg5 {[%clk 0:00:38]} 26. Rf1 {[%clk 0:00:43]}  Qe7 {[%clk 0:00:35]} 27. Bxg5 {[%clk 0:00:35]}  hxg5 {[%clk 0:00:35]} 28. Nf4+ {[%clk 0:00:35]}  Kh6 {[%clk 0:00:24]} 29. Qh5+ {[%clk 0:00:34]}  Kg7 {[%clk 0:00:23]} 30. Qg6+ {[%clk 0:00:35]}  Kh8 {[%clk 0:00:23]} 31. Rf3 {[%clk 0:00:31]}  g4 {[%clk 0:00:18]} 32. Qxg4 {[%clk 0:00:25]}  Rg8 {[%clk 0:00:17]} 33. Rh3+ {[%clk 0:00:25]}  Qh7 {[%clk 0:00:17]} 34. Rxh7+ {[%clk 0:00:18]}  Kxh7 {[%clk 0:00:17]} 35. Qxg8+ {[%clk 0:00:18]}  Kxg8 {[%clk 0:00:18]} 36. Nxe6 {[%clk 0:00:18]}  Kf7 {[%clk 0:00:17]} 37. Nc5 {[%clk 0:00:17]}  d4 {[%clk 0:00:16]} 38. N3e4 {[%clk 0:00:13]}  d3 {[%clk 0:00:14]} 39. Nxb7 {[%clk 0:00:13]}  Ke6 {[%clk 0:00:15]} 40. Nbc5+ {[%clk 0:00:12]}  Kd5 {[%clk 0:00:15]} 41. Nxa6 {[%clk 0:00:09]}  Kxe4 {[%clk 0:00:11]} 42. Kf2 {[%clk 0:00:09]}  Kd5 {[%clk 0:00:10]} 43. Ke3 {[%clk 0:00:08]}  Kc4 {[%clk 0:00:10]} 44. Nb4 {[%clk 0:00:05]}  Kxb4 {[%clk 0:00:08]} 45. a6 {[%clk 0:00:05]}  Kc3 {[%clk 0:00:09]} 46. a7 {[%clk 0:00:06]}  d2 {[%clk 0:00:08]} 47. a8=Q {[%clk 0:00:06]}  d1=Q {[%clk 0:00:09]} 48. Qc6+ {[%clk 0:00:06]}  Kb2 {[%clk 0:00:09]} 49. Qb5+ {[%clk 0:00:06]}  Qb3+ {[%clk 0:00:09]} 50. Qxb3+ {[%clk 0:00:07]}  Kxb3 {[%clk 0:00:10]} 1/2-1/2


[Site "https://www.chess.com"]

[Event "Titled Tuesday Blitz August 09 Early 2022"]
[White "Smietanska, Wiktoria"]
[Black "Fiorito, Joaquin"]
[WhiteFideId "21869359"]
[BlackFideId "180173"]
[WhiteElo "1883"]
[BlackElo "1758"]
[Result "0-1"]
[Round "07"]
[TimeControl "180+1"]
[Date "2022.08.09"]
[WhiteClock "0:00:12"]
[BlackClock "0:00:58"]

1. c4 {[%clk 0:03:00]}  Nf6 {[%clk 0:02:58]} 2. Nc3 {[%clk 0:02:56]}  c6 {[%clk 0:02:57]} 3. g3 {[%clk 0:02:47]}  d5 {[%clk 0:02:56]} 4. cxd5 {[%clk 0:02:16]}  cxd5 {[%clk 0:02:56]} 5. d4 {[%clk 0:02:16]}  Nc6 {[%clk 0:02:56]} 6. Bg2 {[%clk 0:02:12]}  Bf5 {[%clk 0:02:51]} 7. Nf3 {[%clk 0:02:12]}  e6 {[%clk 0:02:51]} 8. O-O {[%clk 0:02:10]}  h6 {[%clk 0:02:52]} 9. h4 {[%clk 0:02:07]}  Be7 {[%clk 0:02:51]} 10. Bf4 {[%clk 0:02:06]}  O-O {[%clk 0:02:51]} 11. Qd2 {[%clk 0:02:02]}  Ne4 {[%clk 0:02:38]} 12. Nxe4 {[%clk 0:02:01]}  dxe4 {[%clk 0:02:39]} 13. Ne5 {[%clk 0:01:58]}  Nxd4 {[%clk 0:02:20]} 14. Rfd1 {[%clk 0:01:47]}  Nc6 {[%clk 0:02:20]} 15. Nd7 {[%clk 0:01:43]}  Re8 {[%clk 0:02:13]} 16. Rac1 {[%clk 0:01:26]}  Rc8 {[%clk 0:01:44]} 17. Bxh6 {[%clk 0:01:14]}  gxh6 {[%clk 0:01:22]} 18. Qxh6 {[%clk 0:01:13]}  Qa5 {[%clk 0:01:23]} 19. h5 {[%clk 0:00:52]}  Ne5 {[%clk 0:01:20]} 20. Nf6+ {[%clk 0:00:44]}  Bxf6 {[%clk 0:01:19]} 21. Qxf6 {[%clk 0:00:45]}  Ng4 {[%clk 0:01:10]} 22. Qg5+ {[%clk 0:00:41]}  Kh7 {[%clk 0:01:10]} 23. Bxe4 {[%clk 0:00:39]}  Rg8 {[%clk 0:01:03]} 24. Bxf5+ {[%clk 0:00:17]}  Qxf5 {[%clk 0:00:57]} 25. Qxf5+ {[%clk 0:00:12]}  exf5 {[%clk 0:00:58]} 0-1


[Site "https://www.chess.com"]

[Event "Titled Tuesday Blitz August 09 Early 2022"]
[White "Sohier, Julien"]
[Black "Lehtosaari, Mauri"]
[WhiteFideId "645346"]
[BlackFideId "501999"]
[WhiteElo "2209"]
[BlackElo "2498"]
[Result "0-1"]
[Round "07"]
[TimeControl "180+1"]
[Date "2022.08.09"]
[WhiteClock "0:02:16"]
[BlackClock "0:00:25"]

1. e4 {[%clk 0:02:58]}  d5 {[%clk 0:02:59]} 2. exd5 {[%clk 0:02:58]}  Qxd5 {[%clk 0:02:59]} 3. Nc3 {[%clk 0:02:58]}  Qe5+ {[%clk 0:02:56]} 4. Qe2 {[%clk 0:02:57]}  Qxe2+ {[%clk 0:02:56]} 5. Bxe2 {[%clk 0:02:58]}  Bf5 {[%clk 0:02:55]} 6. d3 {[%clk 0:02:54]}  c6 {[%clk 0:02:53]} 7. Nf3 {[%clk 0:02:54]}  Nd7 {[%clk 0:02:53]} 8. Bf4 {[%clk 0:02:53]}  e6 {[%clk 0:02:52]} 9. O-O-O {[%clk 0:02:53]}  Bb4 {[%clk 0:02:52]} 10. Ne4 {[%clk 0:02:52]}  Bxe4 {[%clk 0:02:12]} 11. dxe4 {[%clk 0:02:53]}  Ngf6 {[%clk 0:02:07]} 12. Bd3 {[%clk 0:02:45]}  Nc5 {[%clk 0:02:00]} 13. Be5 {[%clk 0:02:40]}  Nxd3+ {[%clk 0:01:59]} 14. Rxd3 {[%clk 0:02:41]}  Nxe4 {[%clk 0:01:35]} 15. Bxg7 {[%clk 0:02:40]}  Rg8 {[%clk 0:01:35]} 16. Bd4 {[%clk 0:02:39]}  Rxg2 {[%clk 0:01:31]} 17. Rg1 {[%clk 0:02:28]}  Rxg1+ {[%clk 0:01:29]} 18. Nxg1 {[%clk 0:02:29]}  b6 {[%clk 0:01:18]} 19. f3 {[%clk 0:02:29]}  Ng5 {[%clk 0:01:08]} 20. h4 {[%clk 0:02:29]}  e5 {[%clk 0:00:51]} 21. Bxe5 {[%clk 0:02:22]}  Ne6 {[%clk 0:00:50]} 22. f4 {[%clk 0:02:21]}  Rd8 {[%clk 0:00:47]} 23. Rxd8+ {[%clk 0:02:19]}  Kxd8 {[%clk 0:00:48]} 24. Nf3 {[%clk 0:02:20]}  Ke7 {[%clk 0:00:48]} 25. Ng5 {[%clk 0:02:19]}  f6 {[%clk 0:00:45]} 26. Nxe6 {[%clk 0:02:15]}  fxe5 {[%clk 0:00:41]} 27. Ng5 {[%clk 0:02:15]}  exf4 {[%clk 0:00:39]} 28. Nxh7 {[%clk 0:02:16]}  f3 {[%clk 0:00:39]} 29. Kd1 {[%clk 0:02:16]}  Ke6 {[%clk 0:00:27]} 30. c3 {[%clk 0:02:16]}  Be7 {[%clk 0:00:26]} 31. Ke1 {[%clk 0:02:15]}  Bxh4+ {[%clk 0:00:26]} 32. Kf1 {[%clk 0:02:16]}  Be7 {[%clk 0:00:25]} 0-1


[Site "https://www.chess.com"]

[Event "Titled Tuesday Blitz August 09 Early 2022"]
[White "Solon, Nathan"]
[Black "Zhigalko, Sergei"]
[WhiteFideId "2017229"]
[BlackFideId "13502956"]
[WhiteElo "2648"]
[BlackElo "2662"]
[Result "0-1"]
[Round "07"]
[TimeControl "180+1"]
[Date "2022.08.09"]
[WhiteClock "0:00:26"]
[BlackClock "0:00:21"]

1. e4 {[%clk 0:03:00]}  c5 {[%clk 0:02:59]} 2. Nf3 {[%clk 0:03:01]}  Nc6 {[%clk 0:02:59]} 3. d3 {[%clk 0:03:01]}  g6 {[%clk 0:02:58]} 4. g3 {[%clk 0:03:01]}  Bg7 {[%clk 0:02:59]} 5. Bg2 {[%clk 0:03:01]}  e5 {[%clk 0:02:56]} 6. O-O {[%clk 0:03:01]}  Nge7 {[%clk 0:02:57]} 7. c3 {[%clk 0:03:00]}  O-O {[%clk 0:02:57]} 8. a3 {[%clk 0:03:00]}  d5 {[%clk 0:02:53]} 9. Nbd2 {[%clk 0:02:56]}  d4 {[%clk 0:02:38]} 10. cxd4 {[%clk 0:02:49]}  cxd4 {[%clk 0:02:34]} 11. b4 {[%clk 0:02:49]}  h6 {[%clk 0:02:10]} 12. b5 {[%clk 0:02:37]}  Na5 {[%clk 0:02:10]} 13. Nb3 {[%clk 0:02:37]}  Be6 {[%clk 0:02:06]} 14. Nc5 {[%clk 0:02:33]}  Bg4 {[%clk 0:01:53]} 15. Bd2 {[%clk 0:02:24]}  Rc8 {[%clk 0:01:48]} 16. Nb3 {[%clk 0:02:09]}  Nxb3 {[%clk 0:01:40]} 17. Qxb3 {[%clk 0:02:10]}  Be6 {[%clk 0:01:26]} 18. Qa4 {[%clk 0:02:06]}  Qd7 {[%clk 0:01:23]} 19. Rfc1 {[%clk 0:01:59]}  a6 {[%clk 0:01:23]} 20. Rab1 {[%clk 0:01:52]}  Rxc1+ {[%clk 0:01:21]} 21. Bxc1 {[%clk 0:01:53]}  Rc8 {[%clk 0:01:20]} 22. Bd2 {[%clk 0:01:51]}  Rc5 {[%clk 0:01:16]} 23. Qa5 {[%clk 0:00:57]}  Rxb5 {[%clk 0:01:00]} 24. Rxb5 {[%clk 0:00:57]}  axb5 {[%clk 0:01:01]} 25. Ne1 {[%clk 0:00:53]}  Bb3 {[%clk 0:00:36]} 26. Bb4 {[%clk 0:00:45]}  Ba4 {[%clk 0:00:25]} 27. Qb6 {[%clk 0:00:39]}  Nc6 {[%clk 0:00:24]} 28. Bc5 {[%clk 0:00:32]}  Bf6 {[%clk 0:00:23]} 29. h4 {[%clk 0:00:26]}  Bd8 {[%clk 0:00:21]} 0-1


[Site "https://www.chess.com"]

[Event "Titled Tuesday Blitz August 09 Early 2022"]
[White "Sztokbant, Bernardo Vainzoff"]
[Black "Aldokhin, Ivan"]
[WhiteFideId "2115956"]
[BlackFideId "24115720"]
[WhiteElo "2209"]
[BlackElo "2246"]
[Result "0-1"]
[Round "07"]
[TimeControl "180+1"]
[Date "2022.08.09"]
[WhiteClock "0:00:02"]
[BlackClock "0:00:04"]

1. e4 {[%clk 0:03:00]}  c5 {[%clk 0:03:00]} 2. Nf3 {[%clk 0:02:58]}  e6 {[%clk 0:03:00]} 3. d4 {[%clk 0:02:54]}  cxd4 {[%clk 0:03:01]} 4. Nxd4 {[%clk 0:02:55]}  Nc6 {[%clk 0:03:01]} 5. Nc3 {[%clk 0:02:54]}  Qc7 {[%clk 0:03:01]} 6. Be3 {[%clk 0:02:50]}  a6 {[%clk 0:03:01]} 7. Be2 {[%clk 0:02:50]}  Nf6 {[%clk 0:03:01]} 8. O-O {[%clk 0:02:50]}  Be7 {[%clk 0:03:00]} 9. f4 {[%clk 0:02:48]}  d6 {[%clk 0:03:00]} 10. a4 {[%clk 0:02:48]}  O-O {[%clk 0:02:55]} 11. Nb3 {[%clk 0:02:48]}  Bd7 {[%clk 0:02:46]} 12. a5 {[%clk 0:02:46]}  Rac8 {[%clk 0:02:45]} 13. Bf3 {[%clk 0:02:45]}  Nb4 {[%clk 0:02:34]} 14. Rf2 {[%clk 0:02:41]}  Qb8 {[%clk 0:02:26]} 15. Rd2 {[%clk 0:02:40]}  Bc6 {[%clk 0:02:11]} 16. Qe2 {[%clk 0:02:39]}  d5 {[%clk 0:02:04]} 17. e5 {[%clk 0:02:38]}  Ne4 {[%clk 0:01:55]} 18. Bxe4 {[%clk 0:02:34]}  dxe4 {[%clk 0:01:55]} 19. Nd4 {[%clk 0:02:31]}  Nd5 {[%clk 0:01:23]} 20. Nxe4 {[%clk 0:02:17]}  Nxe3 {[%clk 0:01:01]} 21. Qxe3 {[%clk 0:02:18]}  Bd5 {[%clk 0:01:00]} 22. b3 {[%clk 0:02:08]}  Bxe4 {[%clk 0:00:40]} 23. Qxe4 {[%clk 0:02:09]}  Rc3 {[%clk 0:00:37]} 24. Kh1 {[%clk 0:01:58]}  Bc5 {[%clk 0:00:26]} 25. Rad1 {[%clk 0:01:54]}  g6 {[%clk 0:00:25]} 26. Ne2 {[%clk 0:01:45]}  Re3 {[%clk 0:00:19]} 27. Qc4 {[%clk 0:01:46]}  Ba7 {[%clk 0:00:19]} 28. Ng3 {[%clk 0:01:38]}  Rc8 {[%clk 0:00:16]} 29. Qf1 {[%clk 0:01:37]}  Qc7 {[%clk 0:00:11]} 30. Ne2 {[%clk 0:01:27]}  h5 {[%clk 0:00:10]} 31. c3 {[%clk 0:01:25]}  Qxa5 {[%clk 0:00:09]} 32. b4 {[%clk 0:01:23]}  Qb5 {[%clk 0:00:08]} 33. h3 {[%clk 0:01:10]}  Qc6 {[%clk 0:00:07]} 34. Kh2 {[%clk 0:01:10]}  Qc4 {[%clk 0:00:07]} 35. Qe1 {[%clk 0:00:47]}  Qe4 {[%clk 0:00:07]} 36. Rd8+ {[%clk 0:00:37]}  Rxd8 {[%clk 0:00:07]} 37. Rxd8+ {[%clk 0:00:38]}  Kg7 {[%clk 0:00:07]} 38. Qh4 {[%clk 0:00:37]}  g5 {[%clk 0:00:06]} 39. Qxg5+ {[%clk 0:00:37]}  Qg6 {[%clk 0:00:07]} 40. Qe7 {[%clk 0:00:22]}  Kh7 {[%clk 0:00:07]} 41. Qf8 {[%clk 0:00:15]}  Qg7 {[%clk 0:00:05]} 42. Qxg7+ {[%clk 0:00:08]}  Kxg7 {[%clk 0:00:06]} 43. Ng3 {[%clk 0:00:07]}  h4 {[%clk 0:00:03]} 44. Nh5+ {[%clk 0:00:07]}  Kg6 {[%clk 0:00:03]} 45. Nf6 {[%clk 0:00:07]}  Re1 {[%clk 0:00:03]} 46. Rg8+ {[%clk 0:00:06]}  Kf5 {[%clk 0:00:04]} 47. Rg5+ {[%clk 0:00:06]}  Kxf4 {[%clk 0:00:04]} 48. Rg4+ {[%clk 0:00:06]}  Kxe5 {[%clk 0:00:04]} 49. Nd7+ {[%clk 0:00:06]}  Kd6 {[%clk 0:00:04]} 50. Nc5 {[%clk 0:00:07]}  Bxc5 {[%clk 0:00:03]} 51. bxc5+ {[%clk 0:00:07]}  Kxc5 {[%clk 0:00:04]} 52. Rxh4 {[%clk 0:00:08]}  b5 {[%clk 0:00:02]} 53. Rf4 {[%clk 0:00:08]}  f5 {[%clk 0:00:02]} 54. h4 {[%clk 0:00:07]}  Rd1 {[%clk 0:00:02]} 55. h5 {[%clk 0:00:07]}  Rd8 {[%clk 0:00:02]} 56. g4 {[%clk 0:00:03]}  fxg4 {[%clk 0:00:02]} 57. Rxg4 {[%clk 0:00:04]}  Rh8 {[%clk 0:00:02]} 58. Rh4 {[%clk 0:00:03]}  a5 {[%clk 0:00:03]} 59. Kg3 {[%clk 0:00:03]}  a4 {[%clk 0:00:03]} 60. Kg4 {[%clk 0:00:04]}  a3 {[%clk 0:00:02]} 61. Rh2 {[%clk 0:00:05]}  Kc4 {[%clk 0:00:03]} 62. Kg5 {[%clk 0:00:02]}  Kxc3 {[%clk 0:00:03]} 63. h6 {[%clk 0:00:02]}  b4 {[%clk 0:00:03]} 64. Kg6 {[%clk 0:00:02]}  b3 {[%clk 0:00:03]} 65. Kg7 {[%clk 0:00:02]}  Rxh6 {[%clk 0:00:03]} 66. Kxh6 {[%clk 0:00:02]}  a2 {[%clk 0:00:03]} 67. Rh1 {[%clk 0:00:02]}  b2 {[%clk 0:00:04]} 68. Rh3+ {[%clk 0:00:02]}  Kd4 {[%clk 0:00:04]} 69. Rh4+ {[%clk 0:00:02]}  Kd5 {[%clk 0:00:04]} 0-1


[Site "https://www.chess.com"]